[Event "Early-Titled-Tuesday-Blitz-February-27-2024"]
[Site "Chess.com"]
[Date "2024.02.27"]
[Round "6"]
[White "vi_pranav"]
[Black "PLAYER_2006_M"]
[Result "1-0"]
[WhiteElo "3123"]
[BlackElo "3012"]
[TimeControl "180+1"]
[EndTime "9:06:08 PST"]
[Termination "vi_pranav won by resignation"]

1. Nf3 {[%clk 0:03:00.1]} 1... Nf6 {[%clk 0:02:59.1]} 2. g3 {[%clk 0:03:00.4]}
2... e6 {[%clk 0:02:59.7]} 3. Bg2 {[%clk 0:03:01.1]} 3... d5 {[%clk 0:03:00.4]}
4. O-O {[%clk 0:03:01.9]} 4... Be7 {[%clk 0:03:00.7]} 5. d3 {[%clk 0:03:02.5]}
5... O-O {[%clk 0:02:55]} 6. Nbd2 {[%clk 0:03:03.1]} 6... c5 {[%clk 0:02:55]} 7.
e4 {[%clk 0:03:03.8]} 7... Nc6 {[%clk 0:02:55.6]} 8. Re1 {[%clk 0:03:03.7]} 8...
b5 {[%clk 0:02:55.7]} 9. e5 {[%clk 0:03:03.7]} 9... Nd7 {[%clk 0:02:55.6]} 10.
Nf1 {[%clk 0:03:04.4]} 10... a5 {[%clk 0:02:55.2]} 11. h4 {[%clk 0:03:04.2]}
11... b4 {[%clk 0:02:55.1]} 12. N1h2 {[%clk 0:03:01.8]} 12... Bb7 {[%clk
0:02:29.6]} 13. h5 {[%clk 0:02:57.2]} 13... Qc7 {[%clk 0:02:21.7]} 14. h6 {[%clk
0:02:54.8]} 14... g6 {[%clk 0:02:18.2]} 15. Ng4 {[%clk 0:02:53.5]} 15... Rfc8
{[%clk 0:02:12.6]} 16. Bf4 {[%clk 0:02:52]} 16... Qd8 {[%clk 0:02:12]} 17. c3
{[%clk 0:02:25.3]} 17... a4 {[%clk 0:02:10.1]} 18. a3 {[%clk 0:02:24.1]} 18...
bxc3 {[%clk 0:02:06.7]} 19. bxc3 {[%clk 0:02:23.7]} 19... Ba6 {[%clk 0:02:03.6]}
20. Bf1 {[%clk 0:02:08]} 20... Na5 {[%clk 0:01:56.8]} 21. Qxa4 {[%clk
0:01:50.4]} 21... c4 {[%clk 0:01:56.6]} 22. Qd1 {[%clk 0:01:33.3]} 22... cxd3
{[%clk 0:01:56.6]} 23. Bxd3 {[%clk 0:01:34.2]} 23... Bxd3 {[%clk 0:01:57.3]} 24.
Qxd3 {[%clk 0:01:34.7]} 24... Nc5 {[%clk 0:01:57.7]} 25. Qe2 {[%clk 0:01:30.1]}
25... Ne4 {[%clk 0:01:57.2]} 26. a4 {[%clk 0:01:11.1]} 26... Nb3 {[%clk
0:01:55]} 27. Rad1 {[%clk 0:00:46.1]} 27... Nxc3 {[%clk 0:01:54.8]} 28. Qd3
{[%clk 0:00:46.2]} 28... Nxd1 {[%clk 0:01:52.2]} 29. Qxb3 {[%clk 0:00:45]} 29...
Nc3 {[%clk 0:01:52.6]} 30. Kg2 {[%clk 0:00:38.1]} 30... Rab8 {[%clk 0:01:51]}
31. Qc2 {[%clk 0:00:35.9]} 31... Ne4 {[%clk 0:01:51.3]} 32. Qe2 {[%clk
0:00:35.1]} 32... Rb4 {[%clk 0:01:43.4]} 33. Ra1 {[%clk 0:00:32.8]} 33... Rbc4
{[%clk 0:01:42.1]} 34. Ne3 {[%clk 0:00:30.1]} 34... Nc3 {[%clk 0:01:39.2]} 35.
Qc2 {[%clk 0:00:19.1]} 35... Nxa4 {[%clk 0:01:39]} 36. Nxc4 {[%clk 0:00:19]}
36... Rxc4 {[%clk 0:01:37.4]} 37. Qb3 {[%clk 0:00:18.3]} 37... Nc5 {[%clk
0:01:35.9]} 38. Qb1 {[%clk 0:00:17.2]} 38... Ra4 {[%clk 0:01:26.1]} 39. Rxa4
{[%clk 0:00:17.4]} 39... Nxa4 {[%clk 0:01:27]} 40. Nd4 {[%clk 0:00:18.3]} 40...
Qe8 {[%clk 0:01:24.2]} 41. Qb7 {[%clk 0:00:16]} 41... Nc5 {[%clk 0:01:24.2]} 42.
Qc7 {[%clk 0:00:14.1]} 42... Nd3 {[%clk 0:01:21.9]} 43. Be3 {[%clk 0:00:11.9]}
43... Qd8 {[%clk 0:01:21.8]} 44. Qb7 {[%clk 0:00:07.7]} 44... Nxe5 {[%clk
0:01:19.6]} 45. Bf4 {[%clk 0:00:07.9]} 45... Nd3 {[%clk 0:00:19.4]} 46. Nc6
{[%clk 0:00:08]} 46... Nc5 {[%clk 0:00:14.4]} 47. Qa7 {[%clk 0:00:04.6]} 47...
Qd7 {[%clk 0:00:09.6]} 48. Nxe7+ {[%clk 0:00:04.8]} 48... Kf8 {[%clk 0:00:10.1]}
49. Qxc5 {[%clk 0:00:05.5]} 49... f6 {[%clk 0:00:09]} 50. Nc6+ {[%clk
0:00:05.7]} 50... Kf7 {[%clk 0:00:09]} 51. Qa7 {[%clk 0:00:05.3]} 51... Qxa7
{[%clk 0:00:05]} 52. Nxa7 {[%clk 0:00:06.2]} 52... e5 {[%clk 0:00:05.9]} 53. Bc1
{[%clk 0:00:06.8]} 53... Ke6 {[%clk 0:00:05.8]} 54. Kf3 {[%clk 0:00:07.4]} 54...
d4 {[%clk 0:00:04.9]} 55. Nb5 {[%clk 0:00:07.3]} 55... Kd5 {[%clk 0:00:05.2]}
56. Nc7+ {[%clk 0:00:07.5]} 56... Kc4 {[%clk 0:00:05.8]} 57. Ne8 {[%clk
0:00:07.6]} 57... f5 {[%clk 0:00:05.7]} 58. Nf6 {[%clk 0:00:08]} 58... Kd3
{[%clk 0:00:06.3]} 59. Nxh7 {[%clk 0:00:07.5]} 59... e4+ {[%clk 0:00:07.2]} 60.
Kg2 {[%clk 0:00:08.1]} 60... Kc2 {[%clk 0:00:08.1]} 61. Bg5 {[%clk 0:00:08.2]}
61... e3 {[%clk 0:00:08.6]} 62. fxe3 {[%clk 0:00:08.4]} 62... d3 {[%clk
0:00:09.1]} 63. e4 {[%clk 0:00:09]} 63... fxe4 {[%clk 0:00:09.8]} 64. Nf6 {[%clk
0:00:09.6]} 1-0

[Event "Early-Titled-Tuesday-Blitz-February-27-2024"]
[Site "Chess.com"]
[Date "2024.02.27"]
[Round "6"]
[White "starworld123"]
[Black "dropstoneDP"]
[Result "1-0"]
[WhiteElo "2848"]
[BlackElo "3019"]
[TimeControl "180+1"]
[EndTime "9:06:21 PST"]
[Termination "starworld123 won on time"]

1. Nf3 {[%clk 0:02:32.2]} 1... Nf6 {[%clk 0:02:58.2]} 2. c4 {[%clk 0:02:32.7]}
2... c5 {[%clk 0:02:58]} 3. Nc3 {[%clk 0:02:32.4]} 3... e6 {[%clk 0:02:57.4]} 4.
d4 {[%clk 0:02:32.3]} 4... cxd4 {[%clk 0:02:56.8]} 5. Nxd4 {[%clk 0:02:33.2]}
5... d5 {[%clk 0:02:55.5]} 6. e3 {[%clk 0:02:25.4]} 6... Bc5 {[%clk 0:02:47.1]}
7. Be2 {[%clk 0:02:11.2]} 7... O-O {[%clk 0:02:39.6]} 8. O-O {[%clk 0:02:11.1]}
8... Nc6 {[%clk 0:02:39.4]} 9. Nxc6 {[%clk 0:01:49.4]} 9... bxc6 {[%clk
0:02:40.3]} 10. b3 {[%clk 0:01:43.8]} 10... a5 {[%clk 0:02:38.2]} 11. Bb2 {[%clk
0:01:43.5]} 11... Ba6 {[%clk 0:02:33.6]} 12. Rc1 {[%clk 0:01:31]} 12... Be7
{[%clk 0:02:29.8]} 13. Na4 {[%clk 0:01:26.2]} 13... Ne4 {[%clk 0:02:24]} 14. Qc2
{[%clk 0:01:19.4]} 14... Bf6 {[%clk 0:02:13.8]} 15. Rfd1 {[%clk 0:01:17.7]}
15... Bxb2 {[%clk 0:02:12.3]} 16. Qxb2 {[%clk 0:01:18.6]} 16... Qe7 {[%clk
0:02:08.5]} 17. Bd3 {[%clk 0:01:11.2]} 17... Nf6 {[%clk 0:01:59.2]} 18. cxd5
{[%clk 0:00:45.7]} 18... cxd5 {[%clk 0:02:00.1]} 19. Bxa6 {[%clk 0:00:45.3]}
19... Rxa6 {[%clk 0:02:00.7]} 20. Rc2 {[%clk 0:00:42.9]} 20... Raa8 {[%clk
0:01:50.2]} 21. Rdc1 {[%clk 0:00:43.1]} 21... Rab8 {[%clk 0:01:49]} 22. Rc7
{[%clk 0:00:37.9]} 22... Qb4 {[%clk 0:01:49.1]} 23. Qc3 {[%clk 0:00:35.1]} 23...
Ne4 {[%clk 0:01:47.8]} 24. Qxb4 {[%clk 0:00:33.3]} 24... axb4 {[%clk 0:01:48.7]}
25. R1c6 {[%clk 0:00:31.4]} 25... h5 {[%clk 0:01:45.5]} 26. f3 {[%clk
0:00:31.4]} 26... Nf6 {[%clk 0:01:32.4]} 27. Kf2 {[%clk 0:00:31.7]} 27... h4
{[%clk 0:01:32.4]} 28. g4 {[%clk 0:00:30]} 28... hxg3+ {[%clk 0:01:31.2]} 29.
hxg3 {[%clk 0:00:30.9]} 29... g5 {[%clk 0:01:29.7]} 30. g4 {[%clk 0:00:31.2]}
30... Rfd8 {[%clk 0:01:28.8]} 31. Nc5 {[%clk 0:00:29]} 31... Ra8 {[%clk
0:01:28.6]} 32. Na6 {[%clk 0:00:27.6]} 32... d4 {[%clk 0:01:27]} 33. exd4 {[%clk
0:00:24.2]} 33... Rxd4 {[%clk 0:01:25.4]} 34. Rc8+ {[%clk 0:00:24.4]} 34... Rxc8
{[%clk 0:01:23.2]} 35. Rxc8+ {[%clk 0:00:25.3]} 35... Kg7 {[%clk 0:01:23.8]} 36.
Ke3 {[%clk 0:00:22.5]} 36... e5 {[%clk 0:01:24.1]} 37. Rc4 {[%clk 0:00:20.2]}
37... Nd5+ {[%clk 0:01:24.4]} 38. Kf2 {[%clk 0:00:16.5]} 38... Rd2+ {[%clk
0:01:23.9]} 39. Ke1 {[%clk 0:00:15.6]} 39... Rxa2 {[%clk 0:01:24.4]} 40. Nxb4
{[%clk 0:00:16.3]} 40... Ra1+ {[%clk 0:01:15.3]} 41. Kd2 {[%clk 0:00:16.9]}
41... Nf4 {[%clk 0:01:14.1]} 42. Nd3 {[%clk 0:00:17.7]} 42... f6 {[%clk
0:00:40.1]} 43. b4 {[%clk 0:00:17.4]} 43... Ne6 {[%clk 0:00:24.9]} 44. b5 {[%clk
0:00:15.6]} 44... Nd4 {[%clk 0:00:25.4]} 45. b6 {[%clk 0:00:14.7]} 45... Ra2+
{[%clk 0:00:21.4]} 46. Kd1 {[%clk 0:00:13.1]} 46... Ra1+ {[%clk 0:00:12.3]} 47.
Rc1 {[%clk 0:00:13.5]} 47... Ra3 {[%clk 0:00:11.9]} 48. Rc7+ {[%clk 0:00:12.5]}
48... Kg6 {[%clk 0:00:11.8]} 49. Nc5 {[%clk 0:00:10]} 49... Ra1+ {[%clk
0:00:08.5]} 50. Kd2 {[%clk 0:00:10.6]} 50... Nxf3+ {[%clk 0:00:06.5]} 51. Kc3
{[%clk 0:00:10.1]} 51... Rb1 {[%clk 0:00:04.6]} 52. b7 {[%clk 0:00:09.6]} 52...
Nd4 {[%clk 0:00:05.1]} 53. Kc4 {[%clk 0:00:07.7]} 53... Nb5 {[%clk 0:00:03.8]}
54. Rd7 {[%clk 0:00:05.3]} 54... Na3+ {[%clk 0:00:03.9]} 55. Kd5 {[%clk
0:00:05.5]} 55... f5 {[%clk 0:00:03.9]} 56. gxf5+ {[%clk 0:00:04.3]} 56... Kxf5
{[%clk 0:00:04.8]} 57. Na6 {[%clk 0:00:04.5]} 57... Rd1+ {[%clk 0:00:03.7]} 58.
Kc6 {[%clk 0:00:05.3]} 58... Rc1+ {[%clk 0:00:03.6]} 59. Kd6 {[%clk 0:00:06]}
59... Rd1+ {[%clk 0:00:02.6]} 60. Ke7 {[%clk 0:00:06.1]} 60... Rb1 {[%clk
0:00:02.4]} 61. b8=Q {[%clk 0:00:06.7]} 61... Rxb8 {[%clk 0:00:03.3]} 62. Nxb8
{[%clk 0:00:07.6]} 62... g4 {[%clk 0:00:03.7]} 63. Nc6 {[%clk 0:00:07.6]} 63...
g3 {[%clk 0:00:04.3]} 64. Rd3 {[%clk 0:00:07.9]} 64... Kf4 {[%clk 0:00:02.4]}
65. Rxa3 {[%clk 0:00:07.3]} 65... g2 {[%clk 0:00:03.1]} 66. Ra1 {[%clk
0:00:07.9]} 66... e4 {[%clk 0:00:03.4]} 67. Nd4 {[%clk 0:00:08]} 67... Ke3
{[%clk 0:00:03.6]} 68. Nf5+ {[%clk 0:00:08.1]} 68... Kf2 {[%clk 0:00:03.6]} 69.
Ra2+ {[%clk 0:00:06.6]} 69... Kg1 {[%clk 0:00:01.6]} 70. Ne3 {[%clk 0:00:06.6]}
70... Kh1 {[%clk 0:00:01.8]} 71. Nxg2 {[%clk 0:00:07.4]} 1-0

[Event "Early-Titled-Tuesday-Blitz-February-27-2024"]
[Site "Chess.com"]
[Date "2024.02.27"]
[Round "6"]
[White "alexrustemov"]
[Black "arenal72"]
[Result "1/2-1/2"]
[WhiteElo "2838"]
[BlackElo "2602"]
[TimeControl "180+1"]
[EndTime "9:06:21 PST"]
[Termination "Game drawn by stalemate"]

1. d4 {[%clk 0:03:00.9]} 1... d6 {[%clk 0:02:52.3]} 2. Nf3 {[%clk 0:02:59.4]}
2... g6 {[%clk 0:02:51.6]} 3. c4 {[%clk 0:02:59]} 3... Bg7 {[%clk 0:02:51.5]} 4.
g3 {[%clk 0:02:59.4]} 4... e5 {[%clk 0:02:50.2]} 5. Nc3 {[%clk 0:02:52.1]} 5...
exd4 {[%clk 0:02:36.5]} 6. Nxd4 {[%clk 0:02:51.6]} 6... Ne7 {[%clk 0:02:36.7]}
7. Bg2 {[%clk 0:02:51.1]} 7... O-O {[%clk 0:02:36.7]} 8. O-O {[%clk 0:02:50.5]}
8... Nbc6 {[%clk 0:02:36]} 9. Nxc6 {[%clk 0:02:44.8]} 9... bxc6 {[%clk
0:02:33.4]} 10. Qd3 {[%clk 0:02:40.5]} 10... Rb8 {[%clk 0:02:30.2]} 11. b3
{[%clk 0:02:38.5]} 11... c5 {[%clk 0:02:28.1]} 12. Bf4 {[%clk 0:02:29.4]} 12...
Bf5 {[%clk 0:02:22.7]} 13. Qd2 {[%clk 0:02:27]} 13... Qd7 {[%clk 0:02:20.7]} 14.
Bh6 {[%clk 0:02:18.2]} 14... Bh3 {[%clk 0:02:17.9]} 15. Bxg7 {[%clk 0:02:16.2]}
15... Kxg7 {[%clk 0:02:17.3]} 16. Ne4 {[%clk 0:02:08.6]} 16... Bxg2 {[%clk
0:02:11.5]} 17. Kxg2 {[%clk 0:02:08]} 17... Qc6 {[%clk 0:02:10.1]} 18. f3 {[%clk
0:01:59.2]} 18... Nf5 {[%clk 0:02:04.8]} 19. Qc3+ {[%clk 0:01:55.1]} 19... f6
{[%clk 0:02:01.6]} 20. Rad1 {[%clk 0:01:49.4]} 20... Rbe8 {[%clk 0:01:59.5]} 21.
g4 {[%clk 0:01:33.2]} 21... Rxe4 {[%clk 0:01:52.9]} 22. gxf5 {[%clk 0:01:18.5]}
22... Rxe2+ {[%clk 0:01:50.6]} 23. Rf2 {[%clk 0:01:18.8]} 23... Rfe8 {[%clk
0:01:45.2]} 24. Rd2 {[%clk 0:01:14]} 24... R2e3 {[%clk 0:01:42.3]} 25. Qc2
{[%clk 0:01:11.7]} 25... R8e5 {[%clk 0:01:39.2]} 26. fxg6 {[%clk 0:01:09.6]}
26... hxg6 {[%clk 0:01:38.5]} 27. h4 {[%clk 0:01:03.8]} 27... Rf5 {[%clk
0:01:33.4]} 28. Qd1 {[%clk 0:01:02.1]} 28... Qe8 {[%clk 0:01:23.9]} 29. Rd3
{[%clk 0:01:00.1]} 29... Qe5 {[%clk 0:01:17.9]} 30. Rxe3 {[%clk 0:00:59]} 30...
Qxe3 {[%clk 0:01:18.2]} 31. Qd2 {[%clk 0:00:59]} 31... Qxd2 {[%clk 0:01:17.4]}
32. Rxd2 {[%clk 0:00:58.9]} 32... Re5 {[%clk 0:01:18.1]} 33. Kg3 {[%clk
0:00:54.4]} 33... Kf7 {[%clk 0:01:17.3]} 34. Kf4 {[%clk 0:00:54.1]} 34... Re1
{[%clk 0:01:17.2]} 35. Rh2 {[%clk 0:00:52.5]} 35... Re5 {[%clk 0:01:11]} 36. a3
{[%clk 0:00:49.5]} 36... a5 {[%clk 0:01:07.9]} 37. Rb2 {[%clk 0:00:47.8]} 37...
Re1 {[%clk 0:01:06.1]} 38. Kg4 {[%clk 0:00:35.6]} 38... Ra1 {[%clk 0:01:03.7]}
39. a4 {[%clk 0:00:29.5]} 39... Re1 {[%clk 0:01:02.5]} 40. Kg3 {[%clk
0:00:28.7]} 40... Ke6 {[%clk 0:01:01.1]} 41. Kf4 {[%clk 0:00:28.8]} 41... Kf7
{[%clk 0:00:57.6]} 42. Kg3 {[%clk 0:00:28.9]} 42... Kg7 {[%clk 0:00:57.6]} 43.
Kg4 {[%clk 0:00:27]} 43... Kh6 {[%clk 0:00:57.8]} 44. Rd2 {[%clk 0:00:23.5]}
44... Re3 {[%clk 0:00:55.9]} 45. Rb2 {[%clk 0:00:22.6]} 45... f5+ {[%clk
0:00:55.2]} 46. Kf4 {[%clk 0:00:22.1]} 46... Re1 {[%clk 0:00:55.3]} 47. Kg3
{[%clk 0:00:17.7]} 47... Kh5 {[%clk 0:00:49.9]} 48. Kf4 {[%clk 0:00:17.9]} 48...
Rh1 {[%clk 0:00:49.9]} 49. Re2 {[%clk 0:00:17.4]} 49... Rxh4+ {[%clk 0:00:49.7]}
50. Kg3 {[%clk 0:00:17.5]} 50... Rd4 {[%clk 0:00:37.5]} 51. Re7 {[%clk
0:00:17.5]} 51... Rd3 {[%clk 0:00:37]} 52. Kf4 {[%clk 0:00:17.7]} 52... g5+
{[%clk 0:00:33.4]} 53. Kxf5 {[%clk 0:00:15.6]} 53... Rxf3+ {[%clk 0:00:33.6]}
54. Ke4 {[%clk 0:00:15.9]} 54... Rxb3 {[%clk 0:00:32.8]} 55. Rxc7 {[%clk
0:00:16.3]} 55... g4 {[%clk 0:00:29.4]} 56. Rg7 {[%clk 0:00:15.2]} 56... Kh4
{[%clk 0:00:26.9]} 57. Kd5 {[%clk 0:00:15.5]} 57... Rd3+ {[%clk 0:00:26.1]} 58.
Kc6 {[%clk 0:00:15.9]} 58... g3 {[%clk 0:00:26.1]} 59. Kb5 {[%clk 0:00:16.2]}
59... Rd4 {[%clk 0:00:25.7]} 60. Kxa5 {[%clk 0:00:15.9]} 60... Rg4 {[%clk
0:00:24.8]} 61. Rh7+ {[%clk 0:00:15.2]} 61... Kg5 {[%clk 0:00:24.9]} 62. Rh1
{[%clk 0:00:15.7]} 62... Rxc4 {[%clk 0:00:23.7]} 63. Ra1 {[%clk 0:00:11.2]}
63... Rb4 {[%clk 0:00:19.7]} 64. Ka6 {[%clk 0:00:11]} 64... Kf4 {[%clk
0:00:19.1]} 65. a5 {[%clk 0:00:11.5]} 65... g2 {[%clk 0:00:19.2]} 66. Ka7 {[%clk
0:00:08.2]} 66... c4 {[%clk 0:00:18.3]} 67. a6 {[%clk 0:00:07.5]} 67... d5
{[%clk 0:00:16.3]} 68. Ka8 {[%clk 0:00:07.9]} 68... d4 {[%clk 0:00:16.1]} 69. a7
{[%clk 0:00:08.5]} 69... d3 {[%clk 0:00:14.6]} 70. Rg1 {[%clk 0:00:03.6]} 70...
Rb2 {[%clk 0:00:10.3]} 71. Rf1+ {[%clk 0:00:02.7]} 71... Ke4 {[%clk 0:00:07.8]}
72. Rf4+ {[%clk 0:00:02.7]} 72... Kd5 {[%clk 0:00:06.5]} 73. Rd4+ {[%clk
0:00:02.8]} 73... Ke5 {[%clk 0:00:06]} 74. Re4+ {[%clk 0:00:02.8]} 74... Kd5
{[%clk 0:00:06]} 75. Rd4+ {[%clk 0:00:03.2]} 75... Kxd4 {[%clk 0:00:03.6]}
1/2-1/2

[Event "Early-Titled-Tuesday-Blitz-February-27-2024"]
[Site "Chess.com"]
[Date "2024.02.27"]
[Round "6"]
[White "ritanovikova"]
[Black "LeoLV10"]
[Result "0-1"]
[WhiteElo "2241"]
[BlackElo "2478"]
[TimeControl "180+1"]
[EndTime "9:06:31 PST"]
[Termination "LeoLV10 won on time"]

1. e4 {[%clk 0:02:58.3]} 1... c6 {[%clk 0:02:58.9]} 2. d4 {[%clk 0:02:58.1]}
2... d5 {[%clk 0:02:59.8]} 3. Nd2 {[%clk 0:02:56.7]} 3... dxe4 {[%clk 0:03:00]}
4. Nxe4 {[%clk 0:02:57.6]} 4... Nf6 {[%clk 0:03:00.9]} 5. Nxf6+ {[%clk
0:02:57.9]} 5... exf6 {[%clk 0:03:01.8]} 6. Nf3 {[%clk 0:02:58.1]} 6... Bd6
{[%clk 0:03:02.4]} 7. Be2 {[%clk 0:02:56.9]} 7... O-O {[%clk 0:03:02.2]} 8. Be3
{[%clk 0:02:57.6]} 8... Re8 {[%clk 0:03:02.7]} 9. O-O {[%clk 0:02:58]} 9... Nd7
{[%clk 0:03:03.2]} 10. c4 {[%clk 0:02:57.9]} 10... Nf8 {[%clk 0:03:04.1]} 11.
Qd2 {[%clk 0:02:56.5]} 11... Be6 {[%clk 0:03:00.9]} 12. Rad1 {[%clk 0:02:52]}
12... Qd7 {[%clk 0:02:57.1]} 13. d5 {[%clk 0:02:48.1]} 13... cxd5 {[%clk
0:02:56.8]} 14. cxd5 {[%clk 0:02:49]} 14... Bf5 {[%clk 0:02:54.5]} 15. Nd4
{[%clk 0:02:44.6]} 15... a6 {[%clk 0:02:47]} 16. Nxf5 {[%clk 0:02:41.6]} 16...
Qxf5 {[%clk 0:02:47.9]} 17. Bd3 {[%clk 0:02:37.1]} 17... Qe5 {[%clk 0:02:44.3]}
18. g3 {[%clk 0:02:33.8]} 18... Qh5 {[%clk 0:02:30.5]} 19. Be2 {[%clk
0:02:22.4]} 19... Qf5 {[%clk 0:02:20.7]} 20. Bd3 {[%clk 0:02:22.3]} 20... Qd7
{[%clk 0:02:20.2]} 21. Bf4 {[%clk 0:02:06.9]} 21... Bc5 {[%clk 0:02:08.9]} 22.
b4 {[%clk 0:01:56.6]} 22... Bb6 {[%clk 0:02:06.7]} 23. Bc2 {[%clk 0:01:50.5]}
23... Ng6 {[%clk 0:02:04.2]} 24. Bxg6 {[%clk 0:01:48.8]} 24... hxg6 {[%clk
0:02:05.1]} 25. h4 {[%clk 0:01:43.6]} 25... Rac8 {[%clk 0:02:02.7]} 26. Rc1
{[%clk 0:01:41.7]} 26... Rcd8 {[%clk 0:01:57.5]} 27. Rfd1 {[%clk 0:01:40.2]}
27... Re4 {[%clk 0:01:56.8]} 28. a3 {[%clk 0:01:35.7]} 28... Rd4 {[%clk
0:01:52]} 29. Qa2 {[%clk 0:01:31.3]} 29... Rxd5 {[%clk 0:01:47.1]} 30. Rxd5
{[%clk 0:01:29]} 30... Qxd5 {[%clk 0:01:48]} 31. Qxd5 {[%clk 0:01:28.5]} 31...
Rxd5 {[%clk 0:01:48.9]} 32. Rc8+ {[%clk 0:01:28.2]} 32... Kh7 {[%clk 0:01:48.5]}
33. Rb8 {[%clk 0:01:24.6]} 33... Rd7 {[%clk 0:01:35.1]} 34. Kf1 {[%clk
0:01:17.1]} 34... Bd8 {[%clk 0:01:34.8]} 35. Ke2 {[%clk 0:01:14.4]} 35... g5
{[%clk 0:01:35.2]} 36. hxg5 {[%clk 0:01:11.9]} 36... fxg5 {[%clk 0:01:35.3]} 37.
Be3 {[%clk 0:01:08.6]} 37... Kg6 {[%clk 0:01:34.9]} 38. g4 {[%clk 0:01:07.1]}
38... Kf6 {[%clk 0:01:29.9]} 39. Rc8 {[%clk 0:01:03.7]} 39... Ke6 {[%clk
0:01:28.7]} 40. Rc5 {[%clk 0:01:01.7]} 40... f6 {[%clk 0:01:28.1]} 41. f4 {[%clk
0:00:55.9]} 41... gxf4 {[%clk 0:01:23.4]} 42. Bxf4 {[%clk 0:00:56.8]} 42... g5
{[%clk 0:01:22.7]} 43. Bg3 {[%clk 0:00:51.2]} 43... Bb6 {[%clk 0:01:18.9]} 44.
Rc8 {[%clk 0:00:49.2]} 44... Bd4 {[%clk 0:01:17.8]} 45. Re8+ {[%clk 0:00:47.1]}
45... Kf7 {[%clk 0:01:13.7]} 46. Rc8 {[%clk 0:00:46.4]} 46... Bb2 {[%clk
0:01:11.3]} 47. a4 {[%clk 0:00:42.1]} 47... Ke6 {[%clk 0:00:46]} 48. Ke3 {[%clk
0:00:39.4]} 48... Bd4+ {[%clk 0:00:44.9]} 49. Ke4 {[%clk 0:00:38.7]} 49... Bb6
{[%clk 0:00:44.3]} 50. Rc4 {[%clk 0:00:33.6]} 50... Rd2 {[%clk 0:00:38.5]} 51.
Bc7 {[%clk 0:00:29.5]} 51... Bg1 {[%clk 0:00:31.5]} 52. b5 {[%clk 0:00:25.1]}
52... axb5 {[%clk 0:00:28.8]} 53. axb5 {[%clk 0:00:26]} 53... Rb2 {[%clk
0:00:29.2]} 54. Rc1 {[%clk 0:00:19.6]} 54... Bf2 {[%clk 0:00:28.9]} 55. Kf3
{[%clk 0:00:16.7]} 55... Bd4 {[%clk 0:00:27.1]} 56. Rc4 {[%clk 0:00:15.9]} 56...
Kd5 {[%clk 0:00:24.8]} 57. Ra4 {[%clk 0:00:09.8]} 57... Rxb5 {[%clk 0:00:23.8]}
58. Ra8 {[%clk 0:00:09.9]} 58... Be5 {[%clk 0:00:20.5]} 59. Bd8 {[%clk
0:00:09.1]} 59... Ke6 {[%clk 0:00:19.4]} 60. Ba5 {[%clk 0:00:05.7]} 60... Rb3+
{[%clk 0:00:19.3]} 61. Ke2 {[%clk 0:00:05.7]} 61... b5 {[%clk 0:00:17.1]} 62.
Bd2 {[%clk 0:00:05]} 62... Rh3 {[%clk 0:00:14.4]} 63. Be3 {[%clk 0:00:03.7]}
63... Kd5 {[%clk 0:00:14.4]} 64. Rd8+ {[%clk 0:00:02.1]} 64... Kc4 {[%clk
0:00:13.8]} 65. Rc8+ {[%clk 0:00:02.1]} 65... Kb3 {[%clk 0:00:14.1]} 66. Kd3
{[%clk 0:00:02.4]} 66... Bf4 {[%clk 0:00:11.8]} 67. Rc3+ {[%clk 0:00:02.9]}
67... Ka4 {[%clk 0:00:11.8]} 68. Kd4 {[%clk 0:00:02.4]} 68... Rxe3 {[%clk
0:00:11.7]} 69. Rxe3 {[%clk 0:00:03.3]} 69... Bxe3+ {[%clk 0:00:12.1]} 70. Kxe3
{[%clk 0:00:04.2]} 70... b4 {[%clk 0:00:12.9]} 71. Kd2 {[%clk 0:00:05.1]} 71...
b3 {[%clk 0:00:13.7]} 72. Kc1 {[%clk 0:00:05.7]} 72... Ka3 {[%clk 0:00:13]} 73.
Kb1 {[%clk 0:00:06.1]} 73... Kb4 {[%clk 0:00:13.4]} 0-1